fUST/lending_fUST_20251018
["ID","MTS","AMOUNT","RATE_DAILY","PERIOD"]
[391714056,1760741869931,260.46152068,0.00026555,2]
[391714057,1760741927973,2245.56540316,0.00026971,2]
[391714058,1760741985671,168.0,0.00026733,2]
[391714060,1760742123023,4827.41227544,0.00026962,2]
[391714061,1760742142231,191.042625,0.00026051,2]
[391714062,1760742184988,168.0,0.0002647,2]
[391714063,1760742201491,262.0,0.00026574,7]
[391714064,1760742206351,1260.0,0.0002688,2]
[391714065,1760742212233,1260.0,0.00026811,2]
[391714066,1760742217743,1260.0,0.00026549,7]
[391714067,1760742222158,150.0,0.00025205,2]
[391714068,1760742222514,172.5,0.00025805,2]
[391714069,1760742223048,195.0,0.00026405,2]
[391714070,1760742270196,1796.45232252,0.00026947,2]
[391714071,1760742272215,1796.45232252,0.00026958,2]
[391714072,1760742274562,1796.45232252,0.00026969,2]
[391714073,1760742276644,1796.45232252,0.00026979,2]
[391714074,1760742278210,1796.45232252,0.0002699,2]
[391714075,1760742347424,151.0,0.00027,13]
[391714076,1760742347802,151.0,0.00027,11]
[391714077,1760742348101,151.0,0.00027,14]
[391714078,1760742383265,3218.27485028,0.00026947,2]
[391714079,1760742392650,-217.5,0.00027005,2]
[391714080,1760742392673,-22.88502148,0.00027036,10]
[391714081,1760742418227,762.0,0.00026808,2]
[391714082,1760742423385,762.0,0.00026478,7]
[391714083,1760742586516,1000.0,0.0002688,5]
[391714084,1760742603437,300.0,0.00029041,120]
[391714100,1760742632107,-371.61,0.00027024,10]
[391714101,1760742632116,-580.21,0.00027024,10]
[391714103,1760742632125,-728.24780001,0.0002703,2]
[391714105,1760742632137,-271.75219999,0.0002703,2]
[391714106,1760742632146,-1000.0,0.0002703,2]
[391714108,1760742632155,-151.0,0.0002703,2]
[391714110,1760742632163,-1000.0,0.0002703,2]
[391714111,1760742632172,-1000.0,0.0002703,2]
[391714112,1760742632181,-151.0,0.0002703,2]
[391714113,1760742632191,-1000.0,0.0002703,2]
[391714114,1760742632200,-151.0,0.0002703,2]
[391714115,1760742632209,-151.0,0.0002703,2]
[391714116,1760742632219,-18101.8982375,0.0002703,2]
[391714117,1760742632230,-2074.87097782,0.0002703,2]
[391714118,1760742632241,-461.26897321,0.0002703,2]
[391714119,1760742632267,-108.22509505,0.0002703,2]
[391714120,1760742632277,-1000.0,0.0002703,2]
[391714121,1760742632285,-151.0,0.0002703,2]
[391714122,1760742632294,-1000.0,0.0002703,2]
[391714123,1760742632303,-151.0,0.0002703,2]
[391714124,1760742632311,-151.0,0.0002703,2]
[391714125,1760742632320,-1000.0,0.0002703,2]
[391714126,1760742632329,-151.0,0.0002703,2]
[391714127,1760742632338,-1000.0,0.0002703,2]
[391714128,1760742632347,-151.0,0.0002703,2]
[391714129,1760742632358,-917.16039794,0.0002703,2]
[391714132,1760742637704,-82.83960206,0.0002703,2]
[391714133,1760742637713,-151.0,0.0002703,2]
[391714134,1760742637722,-1000.0,0.0002703,2]
[391714135,1760742637731,-238.42884912,0.0002703,2]
[391714136,1760742637740,-1000.0,0.0002703,2]
[391714137,1760742637749,-151.0,0.0002703,2]
[391714138,1760742637758,-1000.0,0.0002703,2]
[391714139,1760742637767,-151.0,0.0002703,2]
[391714140,1760742637778,-1000.0,0.0002703,2]
[391714141,1760742637787,-151.0,0.0002703,2]
[391714142,1760742637796,-1000.0,0.0002703,2]
[391714143,1760742637806,-1000.0,0.0002703,2]
[391714144,1760742637814,-151.0,0.0002703,2]
[391714145,1760742637823,-250.0,0.0002703,2]
[391714146,1760742637832,-1000.0,0.0002703,2]
[391714147,1760742637840,-151.0,0.0002703,2]
[391714148,1760742637849,-250.0,0.0002703,2]
[391714149,1760742637858,-261.96045651,0.0002703,2]
[391714150,1760742637867,-151.0,0.0002703,2]
[391714151,1760742637876,-1000.0,0.0002703,2]
[391714152,1760742637885,-151.0,0.0002703,2]
[391714153,1760742637893,-250.0,0.0002703,2]
[391714154,1760742637903,-151.0,0.0002703,2]
[391714155,1760742637911,-250.0,0.0002703,2]
[391714156,1760742637920,-244.36978075,0.0002703,2]
[391714157,1760742637931,-755.63021925,0.0002703,2]
[391714158,1760742637940,-151.0,0.0002703,2]
[391714159,1760742637949,-151.0,0.0002703,2]
[391714160,1760742637958,-1000.0,0.0002703,2]
[391714161,1760742637966,-151.0,0.0002703,2]
[391714162,1760742637975,-250.0,0.0002703,2]
[391714163,1760742637984,-151.0,0.0002703,2]
[391714164,1760742637992,-250.0,0.0002703,2]
[391714165,1760742638001,-151.0,0.0002703,2]
[391714166,1760742638010,-151.0,0.0002703,2]
[391714167,1760742638019,-250.0,0.0002703,2]
[391714168,1760742638028,-151.0,0.0002703,2]
[391714169,1760742638037,-250.0,0.0002703,2]
[391714170,1760742638046,-151.0,0.0002703,2]
[391714171,1760742638055,-151.0,0.0002703,2]
[391714172,1760742638064,-250.0,0.0002703,2]
[391714173,1760742638074,-151.0,0.0002703,2]
[391714174,1760742638083,-151.0,0.0002703,2]
[391714175,1760742638092,-166.0,0.0002703,2]
[391714176,1760742638101,-217.07250694,0.0002703,2]
[391714177,1760742638113,-32.92749306,0.0002703,2]
[391714178,1760742638121,-151.0,0.0002703,2]
[391714179,1760742638131,-250.0,0.0002703,2]
[391714180,1760742638139,-64.1080865,0.0002703,2]
[391714224,1760742639963,-3145.63,0.00027025,3]
[391714226,1760742639973,-86.8919135,0.0002703,2]
[391714228,1760742639983,-151.0,0.0002703,2]
[391714230,1760742639992,-250.0,0.0002703,2]
[391714232,1760742640002,-250.0,0.0002703,2]
[391714234,1760742640011,-151.0,0.0002703,2]
[391714236,1760742640020,-151.0,0.0002703,2]
[391714238,1760742640030,-250.0,0.0002703,2]
[391714241,1760742640040,-250.0,0.0002703,2]
[391714242,1760742640050,-151.0,0.0002703,2]
[391714244,1760742640059,-250.0,0.0002703,2]
[391714247,1760742640069,-250.0,0.0002703,2]
[391714249,1760742640078,-151.0,0.0002703,2]
[391714252,1760742640088,-151.0,0.0002703,2]
[391714254,1760742640098,-250.0,0.0002703,2]
[391714256,1760742640107,-250.0,0.0002703,2]
[391714258,1760742640116,-181.08010149,0.0002703,2]
[391714259,1760742640125,-151.0,0.0002703,2]
[391714261,1760742640136,-250.0,0.0002703,2]
[391714263,1760742640145,-151.0,0.0002703,2]
[391714266,1760742640155,-250.0,0.0002703,2]
[391714268,1760742640164,-151.0,0.0002703,2]
[391714270,1760742640173,-250.0,0.0002703,2]
[391714271,1760742640183,-250.0,0.0002703,2]
[391714273,1760742640192,-151.0,0.0002703,2]
[391714275,1760742640201,-250.0,0.0002703,2]
[391714277,1760742640210,-151.0,0.0002703,2]
[391714279,1760742640220,-250.0,0.0002703,2]
[391714281,1760742640230,-151.0,0.0002703,2]
[391714283,1760742640239,-250.0,0.0002703,2]
[391714285,1760742640249,-151.0,0.0002703,2]
[391714287,1760742640258,-250.0,0.0002703,2]
[391714289,1760742640266,-151.0,0.0002703,2]
[391714291,1760742640275,-151.0,0.0002703,2]
[391714293,1760742640285,-250.0,0.0002703,2]
[391714295,1760742640295,-250.0,0.0002703,2]
[391714297,1760742640304,-250.0,0.0002703,2]
[391714299,1760742640314,-151.0,0.0002703,2]
[391714301,1760742640323,-767.01259765,0.0002703,2]
[391714304,1760742640336,-232.98740235,0.0002703,2]
[391714306,1760742640345,-151.0,0.0002703,2]
[391714308,1760742640356,-1000.0,0.0002703,2]
[391714310,1760742640367,-151.0,0.0002703,2]
[391714312,1760742640377,-1000.0,0.0002703,2]
[391714314,1760742640386,-1000.0,0.0002703,2]
[391714316,1760742640395,-151.30500482,0.0002703,2]
[391714318,1760742640405,-1000.0,0.0002703,2]
[391714320,1760742640415,-979.08619436,0.0002703,2]
[391714322,1760742640426,-20.91380564,0.0002703,2]
[391714324,1760742640437,-300.0,0.00027032,2]
[391714326,1760742640447,-164.88184141,0.00027033,2]
[391714328,1760742640456,-500.0,0.00027033,2]
[391714330,1760742640465,-500.0,0.00027033,2]
[391714332,1760742640475,-781.32648198,0.00027033,2]
[391714334,1760742640484,-500.0,0.00027033,2]
[391714336,1760742640493,-528.21191914,0.00027033,2]
[391714338,1760742640503,-781.32648198,0.00027033,2]
[391714340,1760742640512,-500.0,0.00027033,2]
[391714342,1760742640521,-781.32648198,0.00027033,2]
[391714344,1760742640531,-276.28003984,0.00027033,2]
[391714346,1760742640540,-781.32648198,0.00027033,2]
[391714348,1760742640550,-781.32648198,0.00027033,2]
[391714350,1760742640559,-781.32648198,0.00027033,2]
[391714352,1760742640568,-781.32648198,0.00027033,2]
[391714354,1760742640577,-781.32648198,0.00027033,2]
[391714356,1760742640588,-781.32648198,0.00027033,2]
[391714358,1760742640596,-781.32648198,0.00027033,2]
[391714360,1760742640606,-781.32648198,0.00027033,2]
[391714362,1760742640615,-781.32648198,0.00027033,2]
[391714364,1760742640626,-781.32648198,0.00027033,2]
[391714366,1760742640635,-781.32648198,0.00027033,2]
[391714368,1760742640644,-781.32648198,0.00027033,2]
[391714370,1760742640653,-781.32648198,0.00027033,2]
[391714372,1760742640662,-781.32648198,0.00027033,2]
[391714374,1760742640672,-781.32648198,0.00027033,2]
[391714376,1760742640681,-781.32648198,0.00027033,2]
[391714378,1760742640691,-781.32648198,0.00027033,2]
[391714380,1760742640701,-781.32648198,0.00027033,2]
[391714382,1760742640711,-781.32648198,0.00027033,2]
[391714384,1760742640720,-781.32648198,0.00027033,2]
[391714386,1760742640729,-781.32648198,0.00027033,2]
[391714388,1760742640739,-781.32648198,0.00027033,2]
[391714390,1760742640748,-781.32648198,0.00027033,2]
[391714392,1760742640758,-781.32648198,0.00027033,2]
[391714394,1760742640767,-781.32648198,0.00027033,2]
[391714396,1760742640776,-781.32648198,0.00027033,2]
[391714398,1760742640785,-781.32648198,0.00027033,2]
[391714400,1760742640794,-781.32648198,0.00027033,2]
[391714402,1760742640804,-781.32648198,0.00027033,2]
[391714404,1760742640813,-313.7986648,0.00027033,2]
[391714405,1760742640825,-467.52781718,0.00027033,2]
[391714406,1760742640834,-781.32648198,0.00027033,2]
[391714407,1760742640844,-781.32648198,0.00027033,2]
[391714408,1760742640853,-781.32648198,0.00027033,2]
[391714409,1760742640862,-781.32648198,0.00027033,2]
[391714410,1760742640871,-781.32648198,0.00027033,2]
[391714411,1760742640881,-781.32648198,0.00027033,2]
[391714412,1760742640891,-781.32648198,0.00027033,2]
[391714413,1760742640900,-781.32648198,0.00027033,2]
[391714414,1760742640909,-781.32648198,0.00027033,2]
[391714415,1760742640919,-781.32648198,0.00027033,2]
[391714416,1760742640928,-781.32648198,0.00027033,2]
[391714417,1760742640937,-781.32648198,0.00027033,2]
[391714418,1760742640946,-781.32648198,0.00027033,2]
[391714419,1760742640955,-781.32648198,0.00027033,2]
[391714420,1760742640963,-300.0,0.00027033,2]
[391714421,1760742640973,-300.0,0.00027033,2]
[391714422,1760742640982,-300.0,0.00027033,2]
[391714423,1760742640991,-300.0,0.00027033,2]
[391714424,1760742641000,-1200.0,0.00027033,2]
[391714425,1760742641010,-500.0,0.00027034,2]
[391714426,1760742641020,-500.0,0.00027034,2]
[391714427,1760742641029,-253.35266975,0.00027034,2]
[391714428,1760742641038,-619.53770967,0.00027034,2]
[391714429,1760742641048,-1589.316889,0.00027034,7]
[391714430,1760742641057,-151.0,0.00027034,7]
[391714431,1760742641067,-1589.316889,0.00027034,7]
[391714432,1760742641076,-151.0,0.00027034,7]
[391714433,1760742641086,-379.567719,0.00027034,7]
[391714434,1760742641095,-1589.316889,0.00027034,7]
[391714435,1760742641105,-151.0,0.00027034,7]
[391714436,1760742641114,-379.567719,0.00027034,7]
[391714437,1760742641125,-1589.316889,0.00027034,7]
[391714438,1760742641135,-179.146114,0.00027034,7]
[391714439,1760742641145,-3185.508699,0.00027034,7]
[391714440,1760742641154,-151.0,0.00027034,7]
[391714441,1760742641164,-379.567719,0.00027034,7]
[391714442,1760742641174,-179.146114,0.00027034,7]
[391714443,1760742641183,-3185.508699,0.00027034,7]
[391714444,1760742641192,-151.0,0.00027034,7]
[391714445,1760742641202,-379.567719,0.00027034,7]
[391714446,1760742641211,-179.146114,0.00027034,7]
[391714447,1760742641221,-3185.508699,0.00027034,7]
[391714448,1760742641231,-151.0,0.00027034,7]
[391714449,1760742641240,-179.146114,0.00027034,7]
[391714450,1760742641250,-3185.508699,0.00027034,7]
[391714451,1760742641259,-151.0,0.00027034,7]
[391714452,1760742641394,-407.669973,0.00027034,7]
[391714453,1760742641405,-407.669973,0.00027034,7]
[391714454,1760742641415,-151.0,0.00027034,7]
[391714455,1760742641424,-407.669973,0.00027034,7]
[391714456,1760742641435,-151.0,0.00027034,7]
[391714457,1760742641444,-407.669973,0.00027034,7]
[391714458,1760742641454,-151.0,0.00027034,7]
[391714459,1760742641463,-151.0,0.00027034,7]
[391714460,1760742641472,-151.0,0.00027034,7]
[391714461,1760742641481,-151.0,0.00027034,7]
[391714462,1760742641491,-151.0,0.00027034,7]
[391714463,1760742641500,-151.0,0.00027034,7]
[391714464,1760742641509,-151.0,0.00027034,7]
[391714465,1760742641519,-151.0,0.00027034,7]
[391714466,1760742641528,-151.0,0.00027034,7]
[391714467,1760742641537,-151.0,0.00027034,7]
[391714468,1760742641547,-152.283625,0.00027034,7]
[391714469,1760742641556,-151.0,0.00027034,7]
[391714470,1760742641565,-151.0,0.00027034,7]
[391714471,1760742641574,-151.0,0.00027034,7]
[391714472,1760742641583,-151.0,0.00027034,7]
[391714473,1760742641593,-151.0,0.00027034,7]
[391714474,1760742641602,-151.0,0.00027034,7]
[391714475,1760742641612,-151.0,0.00027034,7]
[391714476,1760742641621,-151.0,0.00027034,7]
[391714477,1760742641631,-10604.0863259,0.00027035,2]
[391714535,1760742642883,-1000.0,0.0002703,2]
[391714536,1760742642893,-1000.0,0.0002703,2]
[391714537,1760742642903,-251.1891536,0.0002703,2]
[391714538,1760742642912,-1000.0,0.0002703,2]
[391714539,1760742642922,-151.0,0.00027034,7]
[391714540,1760742642931,-151.0,0.00027034,7]
[391714541,1760742642941,-151.0,0.00027034,7]
[391714542,1760742642951,-21026.51316907,0.00027035,2]
[391714543,1760742642964,-20110.28979082,0.00027035,2]
[391714544,1760742643008,-1000.0,0.0002703,2]
[391714546,1760742643019,-880.83698528,0.00027035,2]
[391714547,1760742643487,2145.51656686,0.00026935,2]
[391714555,1760742645942,-483.51,0.00027025,10]
[391714556,1760742645953,-251.53964314,0.0002703,2]
[391714557,1760742645965,-748.46035686,0.0002703,2]
[391714558,1760742645975,-956.27644713,0.0002703,2]
[391714560,1760742653492,151.0,0.00027,12]
[391714561,1760742670715,150.0,0.00019119,2]
[391714562,1760742671215,150.0,0.0002003,2]
[391714563,1760742671671,150.0,0.0002094,2]
[391714564,1760742679908,261.10579887,0.00026555,2]
[391714565,1760742698348,343908.92487835,0.00026944,2]
[391714566,1760742708207,-6342.29249378,0.00026944,2]
[391714567,1760742708351,-10000.01,0.00026944,2]
[391714568,1760742708686,-191.09344885,0.00026944,2]
[391714569,1760742720028,-442.33082098,0.00026944,2]
[391714570,1760742720051,-9115.34835804,0.00026944,2]
[391714578,1760742737995,150.0,0.00019119,2]
[391714580,1760742738375,150.0,0.00020029,2]
[391714581,1760742738817,150.0,0.00020939,2]
[391714582,1760742739350,597.10924778,0.00021997,2]
[391714583,1760742739378,150.0,0.0002185,2]
[391714584,1760742739785,150.0,0.0002276,2]
[391714585,1760742740240,154.09,0.00023671,2]
[391714586,1760742740765,179.77,0.00024581,2]
[391714587,1760742741355,205.45,0.00025491,2]
[391714589,1760742757011,-231.13,0.00026402,2]
[391714590,1760742808586,150.0,0.0001959,2]
[391714591,1760742809025,150.0,0.00020523,2]
[391714592,1760742809425,150.0,0.00021455,2]
[391714593,1760742846558,150.0,0.00025205,2]
[391714594,1760742846599,7513.59075222,0.00025935,30]
[391714595,1760742846621,10000.01,0.00025935,30]
[391714596,1760742846642,10000.01,0.00025935,30]
[391714597,1760742846664,10000.01,0.00025935,30]
[391714598,1760742846685,10000.01,0.00025935,30]
[391714599,1760742846706,10000.01,0.00025935,30]
[391714600,1760742846727,5011.72450478,0.00025935,30]
[391714601,1760742847608,172.5,0.00025805,2]
[391714602,1760742860683,4815.78549522,0.00021956,2]
[391714603,1760742860706,5147.19278455,0.00021956,2]
[391714604,1760742862498,-195.0,0.00026405,2]
[391714605,1760742868956,300.0,0.000215,2]
[391714606,1760742875777,150.0,0.00019595,2]
[391714607,1760742876206,150.0,0.00020528,2]
[391714608,1760742876666,173.63,0.00021461,2]
[391714609,1760742877069,0.84272705,0.00022394,2]
[391714610,1760742877092,230.65727295,0.00022394,2]
[391714611,1760742877473,289.38,0.00023327,2]
[391714612,1760742877508,-168.0,0.00026538,2]
[391714613,1760742877539,-168.0,0.00026878,7]
[391714614,1760742877568,-800.0,0.00026917,2]
[391714615,1760742877596,-196.5,0.00026922,2]
[391714616,1760742877625,-1736.78,0.00026924,10]
[391714617,1760742877654,-488.3425431,0.00026933,2]
[391714618,1760742877682,-500.0,0.00026933,2]
[391714619,1760742877708,-514.91969527,0.00026933,2]
[391714620,1760742877737,-197.36444887,0.00026933,2]
[391714621,1760742878091,-500.0,0.00026933,2]
[391714622,1760742878122,-500.0,0.00026933,2]
[391714623,1760742878154,-500.0,0.00026933,2]
[391714624,1760742878185,-500.0,0.00026933,2]
[391714625,1760742878218,-500.0,0.00026933,2]
[391714626,1760742878251,-500.0,0.00026933,2]
[391714627,1760742878283,-500.0,0.00026933,2]
[391714628,1760742878313,-500.0,0.00026933,2]
[391714629,1760742878343,-500.0,0.00026933,2]
[391714630,1760742878374,-500.0,0.00026933,2]
[391714631,1760742878494,-500.0,0.00026933,2]
[391714632,1760742878525,-500.0,0.00026933,2]
[391714633,1760742878555,-269.27319003,0.00026933,2]
[391714634,1760742878584,-500.0,0.00026933,2]
[391714635,1760742878614,-500.0,0.00026933,2]
[391714636,1760742878645,-500.0,0.00026933,2]
[391714637,1760742878676,-500.0,0.00026933,2]
[391714638,1760742878706,-500.0,0.00026933,2]
[391714639,1760742878737,-500.0,0.00026933,2]
[391714640,1760742878767,-500.0,0.00026933,2]
[391714641,1760742878806,347.25,0.0002426,2]
[391714642,1760742878946,-500.0,0.00026933,2]
[391714643,1760742878977,-500.0,0.00026933,2]
[391714644,1760742879007,-500.0,0.00026933,2]
[391714645,1760742879040,-500.0,0.00026933,2]
[391714646,1760742879070,-500.0,0.00026933,2]
[391714647,1760742879101,-500.0,0.00026933,2]
[391714648,1760742879131,-500.0,0.00026933,2]
[391714649,1760742879164,-500.0,0.00026933,2]
[391714650,1760742879196,-500.0,0.00026933,2]
[391714651,1760742879228,-500.0,0.00026933,2]
[391714652,1760742879334,-500.0,0.00026933,2]
[391714653,1760742879364,-500.0,0.00026933,2]
[391714654,1760742879394,-500.0,0.00026933,2]
[391714655,1760742879426,-500.0,0.00026933,2]
[391714656,1760742879456,-500.0,0.00026933,2]
[391714657,1760742879486,-500.0,0.00026933,2]
[391714658,1760742879517,-500.0,0.00026933,2]
[391714659,1760742879691,-500.0,0.00026933,2]
[391714660,1760742879722,-500.0,0.00026933,2]
[391714661,1760742879751,-500.0,0.00026933,2]
[391714662,1760742880116,-500.0,0.00026933,2]
[391714663,1760742880144,-500.0,0.00026933,2]
[391714664,1760742880174,-500.0,0.00026933,2]
[391714665,1760742880204,-500.0,0.00026933,2]
[391714666,1760742880232,-500.0,0.00026933,2]
[391714667,1760742880261,-500.0,0.00026933,2]
[391714668,1760742880289,-500.0,0.00026933,2]
[391714669,1760742880340,405.13,0.00025193,2]
[391714670,1760742880713,463.01,0.00026126,2]
[391714671,1760742881640,-166.99526976,0.00026934,2]
[391714672,1760742882022,300.0,0.000215,2]
[391714673,1760742883703,-217.5,0.00026934,2]
[391714674,1760742885697,-217.5,0.00026934,2]
[391714675,1760742885939,1447.31,0.00026924,10]
[391714676,1760742887771,-217.5,0.00026934,2]
[391714677,1760742893624,300.0,0.000215,2]
[391714678,1760742894475,-200.0,0.00026934,2]
[391714679,1760742896052,-161.29577784,0.00026934,2]
[391714680,1760742897624,-172.5,0.00026934,2]
[391714681,1760742898383,84.56,0.00026924,10]
[391714682,1760742898407,1691.36,0.00026924,10]
[391714683,1760742900207,-256.77559066,0.00026934,2]
[391714684,1760742900302,294.85477171,0.00025205,2]
[391714685,1760742901531,300.0,0.00026933,2]
[391714686,1760742901697,-178.24,0.00026934,2]
[391714687,1760742901977,300.0,0.00026933,2]
[391714688,1760742902003,300.0,0.00026933,2]
[391714689,1760742902035,300.0,0.00026933,2]
[391714690,1760742902502,1200.0,0.00026933,2]
[391714691,1760742904175,-242.82966405,0.00026934,2]
[391714692,1760742905632,500.0,0.00026933,2]
[391714693,1760742905663,500.0,0.00026933,2]
[391714694,1760742905710,500.0,0.00026933,2]
[391714695,1760742905771,500.0,0.00026933,2]
[391714696,1760742905798,500.0,0.00026933,2]
[391714697,1760742905851,500.0,0.00026933,2]
[391714698,1760742906026,300.0,0.000215,2]
[391714699,1760742906102,500.0,0.00026933,2]
[391714700,1760742906155,500.0,0.00026933,2]
[391714701,1760742906270,500.0,0.00026933,2]
[391714702,1760742906316,500.0,0.00026933,2]
[391714703,1760742906369,313.79522829,0.00026933,2]
[391714704,1760742906392,186.20477171,0.00026933,2]
[391714705,1760742906425,500.0,0.00026933,2]
[391714706,1760742906480,500.0,0.00026933,2]
[391714707,1760742906527,500.0,0.00026933,2]
[391714708,1760742906576,500.0,0.00026933,2]
[391714709,1760742906627,500.0,0.00026933,2]
[391714710,1760742906689,500.0,0.00026933,2]
[391714711,1760742906743,500.0,0.00026933,2]
[391714712,1760742906801,500.0,0.00026933,2]
[391714713,1760742906897,500.0,0.00026933,2]
[391714714,1760742910634,1479.94,0.00026924,10]
[391714715,1760742913237,-217.5,0.00026934,2]
[391714716,1760742913711,1430.3443779,0.00026844,2]
[391714717,1760742914856,-1045.280731,0.00026934,2]
[391714718,1760742918216,300.0,0.000215,2]
[391714719,1760742918250,2103.52085039,0.00021991,2]
[391714720,1760742918273,6728.83212078,0.00021991,2]
[391714721,1760742919021,3271.17787922,0.0002197,2]
[391714722,1760742919045,10000.01,0.0002197,2]
[391714723,1760742919069,10000.01,0.0002197,2]
[391714724,1760742919093,10000.01,0.0002197,2]
[391714725,1760742919117,4173.74217969,0.0002197,2]
[391714726,1760742922929,1233.28,0.00026924,10]
[391714727,1760742922982,500.0,0.00026933,2]
[391714728,1760742923035,500.0,0.00026933,2]
[391714729,1760742923224,500.0,0.00026933,2]
[391714730,1760742923294,500.0,0.00026933,2]
[391714731,1760742923354,500.0,0.00026933,2]
[391714732,1760742923400,650.0,0.00026933,2]
[391714733,1760742927725,1442.98782031,0.00026934,2]
[391714734,1760742927748,3557.01217969,0.00026934,2]
[391714735,1760742927790,300.0,0.000269,2]
[391714736,1760742931526,300.0,0.000215,2]
[391714737,1760742935419,1027.73,0.00026924,10]
[391714738,1760742936842,216.47,0.000249,2]
[391714739,1760742939380,300.0,0.000269,2]
[391714740,1760742944004,300.0,0.000215,2]
[391714741,1760742946076,856.45,0.00026924,10]
[391714742,1760742951410,3142.34782031,0.00026934,2]
[391714743,1760742951432,1857.65217969,0.00026934,2]
[391714744,1760742954751,150.0,0.00019622,2]
[391714745,1760742955142,150.0,0.00020556,2]
[391714746,1760742955573,150.0,0.00021491,2]
[391714747,1760742956022,150.0,0.00022425,2]
[391714748,1760742956928,175.54,0.0002336,2]
[391714749,1760742957365,210.65,0.00024294,2]
[391714750,1760742957797,245.76,0.00025228,2]
[391714751,1760742958197,713.7,0.00026924,10]
[391714752,1760742958246,280.87,0.00026163,2]
[391714753,1760742962350,300.0,0.00026933,2]
[391714754,1760742972931,594.75,0.00026924,10]
[391714755,1760742974034,5000.0,0.00026934,2]
[391714756,1760742980260,21.08782031,0.00026306,2]
[391714757,1760742980282,2062.13217969,0.00026306,2]
[391714758,1760742983225,495.63,0.00026924,10]
[391714759,1760742988156,300.0,0.000269,2]
[391714760,1760742993994,413.02,0.00026924,10]
[391714761,1760742998179,5000.0,0.00026934,2]
[391714762,1760742999192,1729.22782031,0.00026171,2]
[391714763,1760742999216,7335.83450979,0.00026171,2]
[391714764,1760743002501,364.0134711,0.00025948,2]
[391714765,1760743007190,344.19,0.00026924,10]
[391714766,1760743014636,1955.97201911,0.00026273,2]
[391714767,1760743014657,3044.02798089,0.00026273,2]
[391714768,1760743014786,3178.09618532,0.00019773,2]
[391714770,1760743020774,286.82,0.00026924,10]
[391714771,1760743021753,3491.06583379,0.00026934,2]
[391714772,1760743021776,1508.93416621,0.00026934,2]
[391714773,1760743021919,8491.07583379,0.00026933,2]
[391714774,1760743021942,9455.83273691,0.00026933,2]
[391714775,1760743022285,300.0,0.00026933,2]
[391714776,1760743027848,150.0,0.00019865,2]
[391714777,1760743028203,94.17726309,0.00026932,2]
[391714778,1760743028226,3937.40273691,0.00026932,2]
[391714779,1760743028820,150.0,0.00020811,2]
[391714780,1760743029484,150.0,0.00021757,2]
[391714781,1760743029845,150.0,0.00022703,2]
[391714782,1760743030843,150.0,0.00023648,2]
[391714783,1760743031536,150.0,0.00024594,2]
[391714784,1760743032967,150.0,0.0002554,2]
[391714785,1760743033414,150.0,0.00026486,2]
[391714786,1760743033588,239.02,0.00026924,10]
[391714787,1760743044847,4773.58726309,0.00026934,2]